[Event "GCT Superbet Rapid Poland 2025"]
[Site "Warsaw"]
[Date "2025.04.28"]
[Round "9.2"]
[White "Aravindh, Chithambaram VR."]
[Black "Firouzja, Alireza"]
[Result "1-0"]
[ECO "C77"]
[WhiteElo "2749"]
[BlackElo "2757"]
[Annotator "TA"]
[PlyCount "174"]
[EventDate "2025.??.??"]
[EventType "rapid"]
[TimeControl "1500+10"]

{[%evp 16,174,6,-9,18,6,3,0,0,-6,0,-13,0,0,5,0,0,0,0,0,0,0,11,0,4,7,0,12,44,0,1,3,2,0,112,97,177,142,140,127,136,110,106,97,102,84,102,76,89,70,68,75,77,14,41,32,34,12,39,30,57,0,45,31,54,0,0,0,0,0,91,91,91,91,91,78,78,65,79,79,91,78,78,78,78,78,78,78,91,91,91,78,78,78,78,78,78,78,79,0,78,78,91,78,78,78,91,78,78,78,91,91,91,78,78,78,78,78,91,78,78,60,68,68,76,47,47,28,28,28,28,29,36,43,43,43,100,43,100,59,100,43,100,72,100,100,100,100,100,100,100,100,100,100,100,100,102,100,102,102,102]} 1. e4 {[%emt 0:00:02]} e5 {[%emt 0:00:01]} 2. Nf3 {[%emt 0:00:03]} Nc6 {[%emt 0:00:01]} 3. Bb5 {[%emt 0:00:04]} a6 {[%emt 0:00:01]} 4. Ba4 {[%emt 0:00:02]} Nf6 {[%emt 0:00:02]} 5. O-O {[%emt 0:00:35]} Be7 {[%emt 0:00:06]} 6. d3 {[%emt 0:00:08]} b5 {[%emt 0:00:05]} 7. Bb3 {[%emt 0:00:02]} d6 {[%emt 0:00:05]} 8. a3 {[%emt 0:00:20][%cal Ba2a3,Ba3a4][%mdl 32]} O-O {[%emt 0:00:05]} 9. Nc3 {[%emt 0:00:03]} Nb8 {[%emt 0:00:04] C77: Ruy Lopez: 3...a6 4 Ba4 Nf6, unusual lines.} 10. a4 {[%emt 0:01:16] 10.Bd2 is a critical line.} b4 {[%emt 0:00:07]} 11. Ne2 {[%emt 0:01:37]} c5 {[%emt 0:00:03] The position is equal.} ({RR} 11... Nbd7 12. Ng3 Nc5 13. Ba2 a5 14. c3 Ba6 15. Bb1 Rb8 16. Be3 Nfd7 17. Bc2 Bf6 18. Re1 g6 19. d4 Ne6 20. Bh6 Re8 21. Qd2 Qe7 22. Nf1 bxc3 23. bxc3 Nb6 24. Ne3 Nc4 25. Nxc4 Bxc4 26. Rab1 {Steindl,J (2252)-Borrmann,L (2425) Vienna AUT 2024 1-0 (55)}) 12. Ng3 {[%emt 0:03:53]} Nc6 {[%emt 0:00:06]} 13. Bg5 $146 {[%emt 0:00:03]} (13. c3 bxc3 14. bxc3 Rb8 15. Be3 Be6 16. Rb1 d5 17. Ng5 Bg4 18. f3 Bc8 19. Bf2 {1-0 Matinian,N (2425)-Pashikyan,R (2202) Yerevan Margaryan Memorial IM 2023 (6)}) ({RR} 13. c3 bxc3 14. bxc3 Rb8 15. Be3 Be6 16. Rb1 d5 17. Ng5 Bg4 18. f3 Bc8 19. Bf2 Na5 20. Nxf7 Rxf7 21. Bxd5 Nxd5 22. Rxb8 Nf4 23. d4 cxd4 24. cxd4 Nc6 25. Ra8 Nxd4 26. Bxd4 exd4 27. Qb3 Bc5 {Matinian,N (2425)-Pashikyan,R (2202) Yerevan ARM 2023 1-0 (41)}) ({RR} 13. c3 bxc3 14. bxc3 Rb8 15. Be3 Be6 16. Rb1 d5 17. Ng5 Bg4 18. f3 Bc8 19. Bf2 Na5 20. Nxf7 Rxf7 21. Bxd5 Nxd5 22. Rxb8 Nf4 23. d4 cxd4 24. cxd4 Nc6 25. Ra8 Nxd4 26. Bxd4 exd4 27. Qb3 Bc5 {Matinian,N (2425)-Pashikyan,R (2202) Yerevan ARM 2023 1-0 (41)}) 13... Be6 {[%emt 0:01:05]} 14. c3 {[%emt 0:01:11]} Rb8 {[%emt 0:00:49]} 15. Bxe6 {[%emt 0:02:22]} fxe6 {[%emt 0:00:02]} 16. d4 {[%emt 0:00:03]} bxc3 {[%emt 0:02:27]} 17. bxc3 {[%emt 0:00:09] White sacrificed a pawn} cxd4 {[%emt 0:00:05]} 18. cxd4 {[%emt 0:00:02]} Nxd4 {[%emt 0:00:08]} 19. Nxd4 {[%emt 0:00:05]} exd4 {[%emt 0:00:01]} 20. Qxd4 {[%emt 0:00:03]} d5 {[%emt 0:00:21]} 21. Rad1 {[%emt 0:04:14]} Rb4 {[%emt 0:05:04]} 22. Qe5 {[%emt 0:00:26]} Qd7 $132 {[%emt 0:01:25][%mdl 2048] Black has counterplay} (22... Rxa4 $2 23. Qxe6+ Kh8 24. exd5 $18 (24. e5 Ng8 $18)) 23. exd5 {[%emt 0:00:49]} exd5 {[%emt 0:00:01][%cal Oe7d8]} 24. Nh5 {[%emt 0:02:52][%cal Od1d5]} Rxa4 {[%emt 0:03:02]} (24... d4 $11) 25. Rxd5 $1 $16 {[%emt 0:03:10] White is more active.} Qg4 {[%emt 0:09:15]} (25... Qe8 $16) 26. Bxf6 {[%emt 0:05:01]} Bxf6 {[%emt 0:00:05]} 27. Nxf6+ {[%emt 0:00:04]} gxf6 {[%emt 0:00:00]} 28. Qe7 {[%emt 0:00:44] White attacks} Qe4 {[%emt 0:01:06]} 29. Qd6 {[%emt 0:00:03]} Re8 {[%emt 0:03:01]} 30. Rdd1 {[%emt 0:00:20] Against Ra1} Qe6 {[%emt 0:00:11]} 31. Qc7 {[%emt 0:00:11]} Rc4 {[%emt 0:00:03]} 32. Qb7 {[%emt 0:00:10]} Qc6 {[%emt 0:00:17]} 33. Qb3 {[%emt 0:00:10]} Kh8 {[%emt 0:00:01]} 34. g3 {[%emt 0:00:17]} (34. Qh3 $16) 34... a5 {[%emt 0:00:08]} 35. Qa3 {[%emt 0:00:11]} Ra4 {[%emt 0:00:17]} 36. Qb2 {[%emt 0:00:12]} Rae4 {[%emt 0:00:23]} 37. Rc1 {[%emt 0:00:11]} Qd6 {[%emt 0:00:06]} 38. Rcd1 {[%emt 0:00:02]} (38. Qb7 $14) 38... Qe6 {[%emt 0:00:12]} 39. Qb7 {[%emt 0:00:04]} a4 {[%emt 0:00:20]} 40. Qa7 {[%emt 0:00:13]} (40. Rd7 $14 Re7 41. Rfd1) 40... Re7 $11 {[%emt 0:00:12]} 41. Qa5 {[%emt 0:00:04]} Kg7 {[%emt 0:00:06]} 42. Ra1 {[%emt 0:00:08]} Qe5 {[%emt 0:00:17]} (42... Qc4 $11 {keeps the balance.}) 43. Rxa4 $16 {[%emt 0:00:10]} Qxa5 {[%emt 0:00:24]} 44. Rxa5 {[%emt 0:00:01][%mdl 4096] Endgame KRR-KRR. White is a pawn up.} Kg6 {[%emt 0:00:01]} 45. Raa1 {[%emt 0:00:15]} h5 {[%emt 0:00:08]} 46. Kg2 {[%emt 0:00:10]} R7e5 {[%emt 0:00:12]} 47. Rfd1 {[%emt 0:00:25]} Re2 {[%emt 0:00:04][%cal Oh5h4]} 48. Ra3 {[%emt 0:00:10]} Rf5 {[%emt 0:00:04]} 49. Rf3 {[%emt 0:00:02]} Rxf3 {[%emt 0:00:01]} 50. Kxf3 {[%emt 0:00:02] KR-KR. White is a pawn up.} Ra2 {[%emt 0:00:16]} 51. Rd4 {[%emt 0:00:12]} Rb2 {[%emt 0:00:04]} 52. Ra4 {[%emt 0:00:03]} Rc2 {[%emt 0:00:02]} 53. Rb4 {[%emt 0:00:02]} Ra2 {[%emt 0:00:01]} 54. Rc4 {[%emt 0:00:02]} Rb2 {[%emt 0:00:01]} 55. Re4 {[%emt 0:00:17]} Ra2 {[%emt 0:00:02]} 56. Re2 {[%emt 0:00:02]} Ra4 {[%emt 0:00:07]} 57. Re4 {[%emt 0:00:19]} Ra2 {[%emt 0:00:03]} 58. Kg2 {[%emt 0:00:06]} Rb2 {[%emt 0:00:02]} 59. Rf4 {[%emt 0:00:25]} Ra2 {[%emt 0:00:03]} 60. h3 {[%emt 0:00:22][%cal Bh2h3,Bh3h4][%mdl 32]} Rb2 {[%emt 0:00:04]} 61. Re4 {[%emt 0:00:11]} Ra2 {[%emt 0:00:03]} 62. Kf3 {[%emt 0:00:04]} Rb2 {[%emt 0:00:03]} 63. Re2 {[%emt 0:00:09]} Rb4 {[%emt 0:00:04]} 64. h4 {[%emt 0:00:05]} Ra4 {[%emt 0:00:03]} 65. Re4 {[%emt 0:00:02]} Ra2 {[%emt 0:00:04]} 66. Ke3 {[%emt 0:00:02]} Rb2 {[%emt 0:00:23]} 67. Rd4 {[%emt 0:00:04]} Ra2 {[%emt 0:00:01]} 68. f3 {[%emt 0:00:17]} Ra3+ {[%emt 0:00:11]} 69. Kf4 {[%emt 0:00:01]} Ra1 {[%emt 0:00:02]} 70. g4 {[%emt 0:00:12]} hxg4 {[%emt 0:00:04]} 71. fxg4 {[%emt 0:00:02]} Rf1+ $1 {[%emt 0:00:40]} 72. Kg3 {[%emt 0:00:03]} Rg1+ $1 {[%emt 0:00:03]} 73. Kf3 {[%emt 0:00:11]} Rf1+ $1 {[%emt 0:00:16]} 74. Kg2 {[%emt 0:00:03]} Ra1 {[%emt 0:00:04]} 75. Rf4 {[%emt 0:00:28]} Ra3 {[%emt 0:00:07] [#]} (75... Ra5 $1 $14) 76. Rf3 {[%emt 0:00:05]} ({White should play} 76. Rf5 $1 $16) 76... Ra1 {[%emt 0:00:05]} (76... Ra5 $1 $14) 77. Kg3 {[%emt 0:00:12]} Ra5 {[%emt 0:00:59]} 78. Re3 {[%emt 0:00:26]} (78. Rd3 $16) 78... Ra1 {[%emt 0:00:41]} (78... f5 $1 $14) 79. Re7 {[%emt 0:00:18] White is better.} Ra3+ {[%emt 0:01:18]} 80. Kf4 {[%emt 0:00:02]} Ra4+ {[%emt 0:00:00] [#]} 81. Re4 $1 {[%emt 0:00:03]} Ra7 {[%emt 0:00:11]} 82. h5+ {[%emt 0:00:07]} Kf7 {[%emt 0:00:06]} 83. Rd4 {[%emt 0:00:15]} Rb7 {[%emt 0:00:08]} 84. Rc4 {[%emt 0:00:07]} Ra7 {[%emt 0:00:15]} 85. Rc5 {[%emt 0:00:08]} Rb7 {[%emt 0:00:21]} 86. Kf5 {[%emt 0:00:06]} Kg7 {[%emt 0:00:09]} 87. Rd5 {[%emt 0:00:27]} Ra7 {[%emt 0:00:14] Black escapes into a draw. Weighted Error Value: White=0.13 (very precise) /Black=0.16 (very precise) Mistake: 	White=5 	Black=6 Inaccurate: 	White=3 	Black=7 OK: 	White=17 	Black=26 Best: 	White=5 	Black=2 Strong: 	White=2 	Black=3} 1-0

[Event "GCT Superbet Rapid Poland 2025"]
[Site "Warsaw"]
[Date "2025.04.28"]
[Round "9.3"]
[White "Topalov, Veselin"]
[Black "Fedoseev, Vladimir"]
[Result "1/2-1/2"]
[ECO "C44"]
[WhiteElo "2717"]
[BlackElo "2739"]
[Annotator "TA"]
[PlyCount "154"]
[EventDate "2025.??.??"]
[EventType "rapid"]
[TimeControl "1500+10"]

{[%evp 13,154,-12,0,-10,0,-33,-8,-17,-27,-34,10,0,0,1,16,22,25,18,20,23,38,43,81,64,64,58,61,0,0,0,2,0,57,0,0,0,0,0,0,19,25,0,7,0,49,41,111,124,181,55,47,7,9,0,0,0,17,19,45,45,196,203,208,210,203,191,202,200,169,167,180,164,153,152,158,114,117,28,96,99,173,170,165,173,214,200,256,239,739,722,1094,1086,1060,529,597,500,533,391,493,512,644,655,664,660,505,765,743,727,1087,821,821,820,844,803,759,710,995,977,970,666,610,611,517,300,295,47,40,8,8,8,8,8,8,8,8,8,8,0,0,0,0,0,0]} 1. e4 {[%emt 0:00:02]} e5 {[%emt 0:00:11]} 2. Nf3 {[%emt 0:00:01]} Nf6 {[%emt 0:00:02]} 3. d3 {[%emt 0:00:05]} Nc6 {[%emt 0:00:41]} 4. Be2 {[%emt 0:00:01]} Be7 {[%emt 0:00:11]} 5. O-O {[%emt 0:00:32]} O-O {[%emt 0:00:04]} 6. Nbd2 {[%emt 0:00:33]} d5 {[%emt 0:00:35]} 7. c3 {[%emt 0:00:02]} a5 {[%emt 0:00:29]} 8. a4 {[%emt 0:00:13] C44: Ponziani Opening and Scotch Gambit.} ({RR} 8. h3 Re8 9. Re1 h6 10. Qc2 Bf8 11. Bf1 a4 12. exd5 Qxd5 13. Ne4 Qd8 14. Ng3 b6 15. Bd2 Bb7 16. Rad1 Qd5 17. Qb1 Rad8 18. Ne4 Qe6 19. a3 Na5 20. Qc2 Nxe4 21. dxe4 Qc6 22. Bc1 Rxd1 {Movsesian,S (2658)-Leko,P (2707) Berlin 2015 ½-½ (37)}) 8... Be6 $146 {[%emt 0:01:01]} ({RR} 8... h6 9. Qc2 Be6 10. Re1 dxe4 11. dxe4 Bc5 12. Bb5 Nd7 13. Nc4 Qf6 14. Be3 Bxe3 15. Nxe3 Ncb8 16. Rad1 Nc5 17. Nd5 Bxd5 18. Rxd5 c6 19. Rxe5 Nbd7 20. Rf5 Qe6 21. Bf1 Rae8 22. e5 Nxa4 23. Rf4 {Espig,L-Thal,O Erfurt 1973 ½-½ (71)}) ({RR} 8... h6 9. Re1 Be6 10. Qc2 Re8 11. Nf1 Qd7 12. Ng3 Bc5 13. h3 Rad8 14. Bf1 Bb6 15. Nh4 dxe4 16. dxe4 Ne7 17. Ngf5 Nxf5 18. Nxf5 Kh7 19. Be3 Bxf5 20. Bxb6 Bxe4 21. Rxe4 Nxe4 22. Bb5 Qf5 23. g4 {Hamitevici,V (2423)-Michelle Catherina,P (2165) chess.com INT 2025 1-0 (33)}) ({RR} 8... Re8 9. Qc2 Bf8 10. Re1 g6 11. Nf1 Bg7 12. Bd2 h6 13. Ng3 Be6 14. h3 Qd6 15. Rad1 Nd7 16. Nh2 Nc5 17. Ng4 Qf8 18. b4 axb4 19. cxb4 Nxa4 20. exd5 Bxd5 21. Bxh6 Nd4 22. Qc1 f5 23. Bxg7 {Kristiansen,T (2250)-Kaiszauri,K (2360) Gausdal 1981 0-1}) ({RR} 8... Re8 9. Qc2 b6 10. d4 exd4 11. Bb5 Bd7 12. exd5 Nxd5 13. Qb3 Nf6 14. cxd4 Bb4 15. Nc4 Ne7 16. Nce5 Be6 17. Qc2 Rf8 18. Bg5 Nfd5 {½-½ (18) Oliver,N-Hartoch,R (2390) London 1982}) 9. Qc2 {[%emt 0:00:25]} Nd7 {[%emt 0:00:43]} 10. exd5 $146 {[%emt 0:03:25]} (10. Re1 dxe4 11. dxe4 Nc5 12. Nc4 f6 13. Nfd2 Rf7 14. Ne3 Bf8 15. b3 Rd7 16. Nd5 {0-1 Zlatanovic,Z (2145)-Panic,M (2281) SRB-chT3 East 2015 (10.42)}) 10... Bxd5 {[%emt 0:00:02]} 11. Nc4 {[%emt 0:00:43]} f5 {[%emt 0:01:50][%cal Bf7f5,Bf5f4][%mdl 32]} 12. Ne3 {[%emt 0:03:11]} Be6 {[%emt 0:00:55]} 13. Rd1 {[%emt 0:00:28]} Qe8 {[%emt 0:02:26]} 14. d4 {[%emt 0:02:10] [#]} f4 {[%emt 0:00:47]} 15. Bc4 $1 {[%emt 0:03:11]} Bxc4 {[%emt 0:01:14]} 16. Nxc4 {[%emt 0:00:02]} exd4 {[%emt 0:00:02]} 17. cxd4 {[%emt 0:00:03]} Nb4 {[%emt 0:00:54]} 18. Qe4 {[%emt 0:00:46][%cal Ob2b3]} Qf7 {[%emt 0:02:01] [#]} 19. Bxf4 $1 {[%emt 0:02:41]} Rae8 {[%emt 0:03:53][%cal Ba8e8,Be8e2,Be2b2][%mdl 32]} 20. Nce5 {[%emt 0:00:45] White has more active pieces.} (20. Nxa5 b6 21. Nb7 (21. Bxc7 Bd6 $17) (21. Nc6 Nxc6 22. Qxc6 Nb8 $11) 21... Nf6 $17) (20. Rdc1 $14) 20... Qxf4 $11 {[%emt 0:00:09]} 21. Qxf4 {[%emt 0:00:02]} (21. Qxb7 $2 Nxe5 22. dxe5 Kh8 23. Qxc7 Qf5 24. Qxa5 Nd3 $17) 21... Rxf4 {[%emt 0:00:03]} 22. Nxd7 {[%emt 0:00:10]} Bd6 {[%emt 0:02:12]} (22... Rd8 $11 23. Nc5 Bxc5 24. dxc5 Rxd1+ 25. Rxd1 Rf5) 23. Rac1 {[%emt 0:01:33]} ({White should play} 23. Kf1 $14) 23... Re2 {[%emt 0:01:32]} 24. b3 {[%emt 0:00:06]} g5 {[%emt 0:01:12]} 25. h3 $36 {[%emt 0:01:30][%cal Od1e1][%mdl 2048] White is pushing.} (25. Nxg5 Rfxf2 (25... Rexf2 $2 26. Nh3 $18) 26. Kh1 Rxg2 $17) 25... h5 $1 {[%emt 0:00:40]} 26. Re1 {[%emt 0:00:22]} (26. Nxg5 $2 Rfxf2 (26... Rexf2 27. Rf1 $16) 27. Kh1 Rxg2 $19) 26... Rb2 {[%emt 0:00:36]} 27. Re6 {[%emt 0:04:19]} g4 {[%emt 0:02:59]} 28. hxg4 {[%emt 0:00:01]} hxg4 {[%emt 0:00:06]} (28... Nd3 $11 {is more appropriate.} 29. Rf1 hxg4) 29. Nfe5 $14 {[%emt 0:00:03]} Rfxf2 {[%emt 0:00:24]} (29... Bxe5 $1 $14 30. Nxe5 c6) 30. Rg6+ $16 {[%emt 0:00:02]} (30. Nxg4 $2 Rxg2+ 31. Kh1 Rxg4 $19) 30... Kh7 {[%emt 0:00:20]} (30... Kh8 $16) 31. Rxg4 {[%emt 0:00:01]} (31. Nf6+ $18 Rxf6 32. Rxf6) 31... Nd5 $1 $14 {[%emt 0:00:16]} 32. Re1 {[%emt 0:00:49] Inhibits Ne3.} Rf4 {[%emt 0:00:27]} 33. Rxf4 {[%emt 0:01:24]} (33. Rg3 {seems wilder.} Rf5 34. Rh3+ Kg7 35. Re4) 33... Nxf4 {[%emt 0:00:02]} 34. Re4 {[%emt 0:00:01]} Rb1+ {[%emt 0:01:10]} (34... Rxg2+ $2 35. Kf1 $18) 35. Kf2 {[%emt 0:00:30]} Rb2+ {[%emt 0:00:02]} 36. Kf3 {[%emt 0:00:14]} Nd5 {[%emt 0:00:17]} ({Black should try} 36... Ne6 $1 $14) 37. Rh4+ $18 {[%emt 0:00:04]} Kg7 {[%emt 0:00:00][%cal Od6e5]} 38. Rg4+ {[%emt 0:00:05]} Kh7 {[%emt 0:00:05][%cal Oc7c6]} 39. Ke4 {[%emt 0:00:07]} c6 {[%emt 0:00:13]} 40. Nc4 {[%emt 0:00:24][%csl Ba5,Bb2,Bd6]} Re2+ {[%emt 0:00:27]} 41. Kf3 {[%emt 0:00:01]} Re6 {[%emt 0:00:09]} 42. Re4 {[%emt 0:00:20]} (42. Nxa5 Re3+ 43. Kf2 Bb4 $16) 42... Rg6 {[%emt 0:00:15]} 43. g4 {[%emt 0:00:26]} Bb4 {[%emt 0:00:18]} 44. Nce5 {[%emt 0:00:11]} Rh6 {[%emt 0:00:21]} 45. Kg3 {[%emt 0:00:05] Wards off Rh3+} (45. Kg2 $16) 45... Be7 {[%emt 0:00:04] Dodges g5} (45... Rh1 $11) 46. Nc5 {[%emt 0:00:20]} Nc3 {[%emt 0:00:18]} (46... b5 $16 {was necessary.} 47. Nb7 b4) 47. Re3 {[%emt 0:00:04]} Nd5 {[%emt 0:00:08]} 48. Rf3 {[%emt 0:00:01]} b6 {[%emt 0:00:02]} 49. Ne4 {[%emt 0:00:03]} Re6 {[%emt 0:00:12]} 50. g5 {[%emt 0:00:13]} Kg8 $2 {[%emt 0:00:18]} (50... Bc5) 51. Kg4 {[%emt 0:00:02]} Bd8 {[%emt 0:00:01]} 52. Kf5 {[%emt 0:00:06]} Re8 {[%emt 0:00:14]} 53. Nxc6 {[%emt 0:00:03] A dynamic duo of knights.} (53. Nf6+ $142 Bxf6 54. gxf6 Nxf6 55. Rg3+ (55. Kxf6 Rd8 $18) 55... Kf8 56. Kxf6) 53... Kg7 {[%emt 0:00:14]} 54. Nxd8 {[%emt 0:00:04]} Rxd8 {[%emt 0:00:02][%mdl 4096] Endgame KRN-KRN. White is two pawns up.} 55. Nf6 {[%emt 0:00:14]} Ne7+ {[%emt 0:00:00]} 56. Ke4 {[%emt 0:00:03]} ({Weaker is} 56. Ke6 Nc6 $18) 56... Kg6 {[%emt 0:00:02]} 57. d5 {[%emt 0:00:10]} Kxg5 {[%emt 0:00:07]} 58. Ke5 {[%emt 0:00:05]} Ng6+ {[%emt 0:00:22]} 59. Ke6 {[%emt 0:00:01]} Nf4+ {[%emt 0:00:01]} 60. Ke7 {[%emt 0:00:15]} Ra8 {[%emt 0:00:04]} 61. d6 {[%emt 0:00:08]} Ng6+ {[%emt 0:00:02]} 62. Ke6 {[%emt 0:00:01]} Nf4+ {[%emt 0:00:04]} 63. Ke5 {[%emt 0:00:06]} Ng6+ {[%emt 0:00:01]} 64. Ke4 {[%emt 0:00:07]} Rd8 {[%emt 0:00:10]} 65. Rf5+ {[%emt 0:00:04]} Kh6 {[%emt 0:00:03]} 66. Rd5 {[%emt 0:00:20]} Kg7 {[%emt 0:00:05]} 67. Ng4 {[%emt 0:00:02]} Nf8 {[%emt 0:00:17]} 68. Ne5 {[%emt 0:00:09]} Kf6 {[%emt 0:00:03]} 69. d7 $2 {[%emt 0:00:15]} (69. Rd3 $18 {Threatens to win with Kd5.} Re8 70. Rf3+ Ke6 71. Nc4) 69... Ke6 $14 {[%emt 0:00:09][%cal Rf8d7]} 70. Rb5 {[%emt 0:01:14]} (70. Nc6 {simplifies} Rxd7 71. Nd4+ Ke7 72. Rb5) 70... Nxd7 {[%emt 0:00:04] The position is equal.} 71. Nxd7 {[%emt 0:00:01]} Kxd7 {[%emt 0:00:07]} 72. Rxb6 $11 {[%emt 0:00:02] KR-KR. White is a pawn up.} Kc7 {[%emt 0:00:19]} 73. Rb5 {[%emt 0:00:01]} Kc6 {[%emt 0:00:11]} 74. Ke5 {[%emt 0:00:12]} Rd7 {[%emt 0:00:18]} 75. Ke6 {[%emt 0:00:21][%cal Ob5c5]} Rd6+ {[%emt 0:00:03]} 76. Ke7 {[%emt 0:00:02][%cal Ob5b6]} Rd7+ {[%emt 0:00:01]} 77. Ke8 {[%emt 0:00:01][%cal Ob5c5] Rc5+! would kill now.} Rd3 {[%emt 0:00:15] Black escapes into a draw. Weighted Error Value: White=0.27 (precise) /Black=0.44 Missed win: 	White=1 	--- Mistake: 	White=4 	Black=8 Inaccurate: 	White=3 	Black=4 OK: 	White=17 	Black=18 Best: 	White=9 	Black=6 Strong: 	White=1 	Black=2} 1/2-1/2

[Event "GCT Superbet Rapid Poland 2025"]
[Site "Warsaw"]
[Date "2025.04.28"]
[Round "9.4"]
[White "Deac, Bogdan-Daniel"]
[Black "Vachier-Lagrave, Maxime"]
[Result "1/2-1/2"]
[ECO "A33"]
[WhiteElo "2668"]
[BlackElo "2722"]
[Annotator "TA"]
[PlyCount "104"]
[EventDate "2025.??.??"]
[EventType "rapid"]
[TimeControl "1500+10"]

{[%evp 11,104,2,16,-7,-7,2,0,0,46,42,63,71,68,52,65,62,69,78,99,85,81,86,93,101,89,89,99,79,88,63,62,72,69,60,68,58,58,54,61,62,63,63,78,54,48,38,51,58,52,57,93,86,110,108,101,101,103,64,73,71,60,41,71,11,11,18,18,18,18,18,18,18,17,10,10,0,0,0,0,0,0,0,0,0,0,0,0,0,0,0,0,0,0,0,0]} 1. Nf3 {[%emt 0:00:02]} Nf6 {[%emt 0:00:22]} 2. c4 {[%emt 0:00:02]} c5 {[%emt 0:00:01]} 3. Nc3 {[%emt 0:00:02]} Nc6 {[%emt 0:00:03]} 4. d4 {[%emt 0:00:25]} cxd4 {[%emt 0:00:06]} 5. Nxd4 {[%emt 0:00:02]} e6 {[%emt 0:00:03]} 6. Bf4 {[%emt 0:00:03]} d5 {[%emt 0:00:07]} 7. cxd5 {[%emt 0:00:08] A33: Symmetrical English: 2 Nf3 Nf6 3 d4 cxd4 4 Nxd4 e6 5 Nc3 Nc6.} Nxd5 {[%emt 0:00:02]} 8. Nxc6 {[%emt 0:00:04]} bxc6 {[%emt 0:00:02]} 9. Bd2 {[%emt 0:00:03]} Rb8 {[%emt 0:00:46]} (9... Bb4 $11) ({RR} 9... Bb4 10. Qc2 Nxc3 11. Bxc3 Qa5 12. Bxb4 Qxb4+ 13. Qd2 c5 14. e3 Bb7 15. a3 Qb6 16. Qc3 O-O 17. Bc4 Qc6 18. f3 Ba6 19. O-O Rab8 20. Rf2 Bxc4 21. Qxc4 Rb5 22. Rc1 Qb6 23. Rcc2 Rd8 24. Rfd2 {Subelj,J (2524)-Muradli,M (2584) Eforie Nord ROU 2025 ½-½ (31)}) 10. e4 $14 {[%emt 0:00:19]} Nf6 {[%emt 0:01:02]} ({RR} 10... Nxc3 11. Bxc3 Qxd1+ 12. Kxd1 f6 13. e5 Kf7 14. Bc4 Bb4 15. Kc2 Rd8 16. Rad1 Rxd1 17. Rxd1 Bxc3 18. Kxc3 Ke7 19. exf6+ gxf6 20. Rd3 Bd7 21. Rh3 Rh8 22. Rh6 e5 23. Bd3 Kf7 24. Rxh7+ Rxh7 25. Bxh7 {Giri,A (2777)-Vachier Lagrave,M (2763) chess24.com INT 2021 1-0 (44)}) 11. Bf4 $146 {[%emt 0:03:30]} (11. Qc2 Bb4 12. Be2 O-O 13. O-O e5 14. Rfd1 Be6 15. Be3 Qa5 16. Na4 Be7 17. b3 {0-1 Gulkov,I (2358)-Sjugirov,S (2675) Titled Tuesday intern op 27th Oct blitz 2020 (1)}) ({RR} 11. Qc2 Qb6 12. Na4 Qd4 13. Bd3 Ng4 14. Bc3 Bb4 15. O-O Bxc3 16. Qxc3 Qxc3 17. bxc3 Ne5 18. Be2 Kd8 19. Rab1 Rxb1 20. Rxb1 Nd7 21. f3 Kc7 22. Rd1 g5 23. Kf2 h5 24. Ke3 h4 25. Bd3 Rh5 {Hernandez,G (2329)-Mekhitarian,K (2448) Vitoria 2006 ½-½ (33)}) ({RR} 11. Qc2 Bb4 12. Be2 O-O 13. O-O e5 14. Rfd1 Be6 15. Be3 Qa5 16. Na4 Be7 17. b3 c5 18. f3 Rfc8 19. Nb2 Qc7 20. Nc4 Nd7 21. Rac1 Nb6 22. Qc3 Nd7 23. Qa5 Qc6 24. Qc3 f6 25. Na5 Qc7 {Gulkov,I (2358)-Sjugirov,S (2675) Chess.com INT 2020 0-1}) ({RR} 11. Qc2 Bd6 12. Be2 O-O 13. O-O Qc7 14. h3 Bb7 15. Bg5 Be7 16. Bd3 Ng4 17. hxg4 Bxg5 18. Na4 Bf6 19. Nc5 Bc8 20. Rab1 Qf4 21. Be2 Bd4 22. Nb3 Bb6 23. Qd3 Rd8 24. Qf3 Qe5 25. Bc4 Bb7 {Feller,S (2228)-Vachier Lagrave,M (2525) France 2005 0-1 (40)}) 11... Qxd1+ {[%emt 0:00:07]} 12. Nxd1 {[%emt 0:00:09][%cal Bc3d1,Bd1e3,Be3c4][%mdl 32]} Rb6 {[%emt 0:01:52]} 13. f3 {[%emt 0:04:36][%csl Oa7,Oc6] Black has weak pawns} Bc5 {[%emt 0:01:17]} 14. Rc1 {[%emt 0:01:55]} Bd4 {[%emt 0:00:02] [#]} 15. b3 $1 {[%emt 0:00:04]} c5 {[%emt 0:00:44]} 16. Be3 {[%emt 0:02:59] Hoping for Bxd4.} Bxe3 {[%emt 0:00:31]} 17. Nxe3 {[%emt 0:00:24]} Nd7 {[%emt 0:00:01]} 18. Nc4 {[%emt 0:04:34]} Rb8 {[%emt 0:00:02]} 19. Kf2 {[%emt 0:01:29]} Ke7 {[%emt 0:00:14]} 20. Na5 {[%emt 0:00:08]} Rb6 {[%emt 0:00:03] Repels Nc6+} 21. Bc4 {[%emt 0:01:28]} h5 {[%emt 0:03:53]} 22. h4 {[%emt 0:01:34]} Ba6 {[%emt 0:02:05]} 23. Rhd1 {[%emt 0:00:08]} Rc8 {[%emt 0:00:12]} 24. Ke3 {[%emt 0:01:54]} Rc7 {[%emt 0:00:49]} 25. Rd2 {[%emt 0:00:28] White has more active pieces.} Ne5 {[%emt 0:01:31]} 26. Rc3 {[%emt 0:02:32]} f6 {[%emt 0:01:13]} 27. Bxa6 {[%emt 0:00:19]} Rxa6 {[%emt 0:00:02][%cal Bb6a6,Ba6a4,Ba4b4][%mdl 32]} 28. b4 {[%emt 0:00:13][%cal Bb3b4,Bb4c5,Bc5c6][%mdl 32]} Nd7 {[%emt 0:01:35]} 29. Rdc2 {[%emt 0:00:07]} Rc8 {[%emt 0:00:32]} 30. Nb3 {[%emt 0:00:12]} (30. Nb7 Rb6 31. Nxc5 Rxb4 32. Nxd7 Rxc3+ 33. Rxc3 Kxd7 34. Ra3) 30... Ra4 {[%emt 0:00:21]} 31. bxc5 {[%emt 0:00:07]} ({But not} 31. Nxc5 Rxb4 32. a3 Rb5 $11) 31... Ne5 {[%emt 0:00:06]} 32. c6 {[%emt 0:00:02]} Rc7 {[%emt 0:00:30]} 33. Nd4 {[%emt 0:00:18]} a6 {[%emt 0:00:14] Repels Nb5} 34. Ne2 {[%emt 0:00:18]} g6 {[%emt 0:00:37]} 35. Nf4 {[%emt 0:00:05]} Rb4 {[%emt 0:00:01]} 36. Kf2 {[%emt 0:00:12]} Rb6 {[%emt 0:00:12][%cal Oe7f7] [#]} 37. Kg3 {[%emt 0:00:08]} (37. Ke2 $1 $16) 37... Kf7 $11 {[%emt 0:00:07] The position is equal.} 38. Nd3 {[%emt 0:00:12]} Nxd3 {[%emt 0:00:43]} 39. Rxd3 {[%emt 0:00:01][%mdl 4096] Endgame KRR-KRR. White is a pawn up.} Ke7 {[%emt 0:00:52] Repels Rd7+} 40. Rdc3 {[%emt 0:00:20]} Kd6 {[%emt 0:00:37]} 41. Rd2+ {[%emt 0:00:05]} Ke7 {[%emt 0:00:01] [#]} 42. e5 $1 {[%emt 0:00:17]} fxe5 {[%emt 0:00:23]} (42... Rcxc6 {simplifies} 43. exf6+ Kxf6 44. Rcd3 Rb4) (42... Rbxc6 43. exf6+) 43. Rc5 {[%emt 0:00:09]} Rbxc6 {[%emt 0:00:21]} 44. Rxe5 {[%emt 0:00:02]} Rc5 {[%emt 0:00:04]} 45. Re4 {[%emt 0:00:07]} Rc4 {[%emt 0:00:20]} 46. Rde2 {[%emt 0:00:16]} Rxe4 {[%emt 0:00:01]} 47. Rxe4 {[%emt 0:00:01] KR-KR} Rc5 {[%emt 0:00:02]} 48. Rb4 {[%emt 0:00:20]} Kf6 {[%emt 0:00:10]} 49. Rf4+ {[%emt 0:00:06]} Ke7 {[%emt 0:00:01]} 50. Rb4 {[%emt 0:00:02]} Kf6 {[%emt 0:00:18]} 51. Rf4+ {[%emt 0:00:02]} Ke7 {[%emt 0:00:09]} 52. Rb4 {[%emt 0:00:03]} Kf6 {[%emt 0:00:11] Weighted Error Value: White=0.07 (flawless) /Black=0.05 (flawless) Mistake: 	White=1 	Black=1 Inaccurate: 	White=1 	Black=1 OK: 	White=16 	Black=22 Best: 	White=1 	Black=4 Strong: 	White=1 	---} 1/2-1/2